[Event "Titled Tuesday Blitz May 23 Early 2023"]
[White "Alex_Sahakyan2006"]
[Black "Kramnik, Vladimir"]
[BlackFideId "4101588"]
[WhiteElo "2699"]
[BlackElo "2703"]
[Result "0-1"]
[Round "11"]
[TimeControl "180+2"]
[Date "2023.05.23"]
[WhiteClock "0:00:11"]
[BlackClock "0:00:18"]

1. d4 {[%clk 0:03:00]}  Nf6 {[%clk 0:02:59]} 2. Nf3 {[%clk 0:03:01]}  e6 {[%clk 0:02:59]} 3. Bf4 {[%clk 0:03:00]}  b6 {[%clk 0:02:56]} 4. e3 {[%clk 0:02:52]}  Be7 {[%clk 0:02:56]} 5. Bd3 {[%clk 0:02:52]}  Bb7 {[%clk 0:02:54]} 6. O-O {[%clk 0:02:52]}  O-O {[%clk 0:02:54]} 7. h3 {[%clk 0:02:52]}  c5 {[%clk 0:02:50]} 8. c3 {[%clk 0:02:50]}  d5 {[%clk 0:02:45]} 9. Ne5 {[%clk 0:02:49]}  Nc6 {[%clk 0:02:38]} 10. Nxc6 {[%clk 0:02:49]}  Bxc6 {[%clk 0:02:37]} 11. Nd2 {[%clk 0:02:50]}  b5 {[%clk 0:02:26]} 12. dxc5 {[%clk 0:02:47]}  Bxc5 {[%clk 0:02:24]} 13. Nb3 {[%clk 0:02:47]}  Be7 {[%clk 0:02:18]} 14. Nd4 {[%clk 0:02:47]}  Qb6 {[%clk 0:02:16]} 15. Nxc6 {[%clk 0:02:46]}  Qxc6 {[%clk 0:02:15]} 16. Qb3 {[%clk 0:02:43]}  a6 {[%clk 0:02:10]} 17. a4 {[%clk 0:02:43]}  bxa4 {[%clk 0:01:43]} 18. Qxa4 {[%clk 0:02:37]}  Qb6 {[%clk 0:01:43]} 19. Ra2 {[%clk 0:02:35]}  Bd6 {[%clk 0:01:40]} 20. Bg5 {[%clk 0:02:16]}  Be5 {[%clk 0:01:25]} 21. Rfa1 {[%clk 0:02:12]}  Rfb8 {[%clk 0:01:21]} 22. Qh4 {[%clk 0:01:52]}  h6 {[%clk 0:01:17]} 23. Bf4 {[%clk 0:01:46]}  Bxf4 {[%clk 0:01:15]} 24. Qxf4 {[%clk 0:01:47]}  Qd8 {[%clk 0:00:45]} 25. b4 {[%clk 0:01:40]}  Rc8 {[%clk 0:00:45]} 26. Qd4 {[%clk 0:01:37]}  Qc7 {[%clk 0:00:45]} 27. Rxa6 {[%clk 0:01:30]}  e5 {[%clk 0:00:40]} 28. Qh4 {[%clk 0:00:53]}  Rxa6 {[%clk 0:00:39]} 29. Bxa6 {[%clk 0:00:52]}  Qxc3 {[%clk 0:00:38]} 30. Rf1 {[%clk 0:00:46]}  Rb8 {[%clk 0:00:35]} 31. b5 {[%clk 0:00:45]}  Qc5 {[%clk 0:00:25]} 32. Qa4 {[%clk 0:00:42]}  Ne4 {[%clk 0:00:21]} 33. Qa1 {[%clk 0:00:38]}  Nc3 {[%clk 0:00:20]} 34. Kh1 {[%clk 0:00:34]}  d4 {[%clk 0:00:20]} 35. exd4 {[%clk 0:00:35]}  exd4 {[%clk 0:00:20]} 36. Rc1 {[%clk 0:00:24]}  Qb4 {[%clk 0:00:20]} 37. Rc2 {[%clk 0:00:15]}  Rd8 {[%clk 0:00:20]} 38. Qf1 {[%clk 0:00:14]}  d3 {[%clk 0:00:19]} 39. Rd2 {[%clk 0:00:14]}  Ne4 {[%clk 0:00:19]} 40. Ra2 {[%clk 0:00:13]}  d2 {[%clk 0:00:18]} 41. Ra1 {[%clk 0:00:13]}  d1=Q {[%clk 0:00:18]} 42. Rxd1 {[%clk 0:00:11]}  Rxd1 {[%clk 0:00:18]} 0-1


[Site "https://www.chess.com"]

[Event "Titled Tuesday Blitz May 23 Early 2023"]
[White "Sarana, Alexey"]
[Black "Gharibyan, Mamikon"]
[WhiteFideId "24133795"]
[BlackFideId "13308300"]
[WhiteElo "2714"]
[BlackElo "2445"]
[Result "1-0"]
[Round "11"]
[TimeControl "180+2"]
[Date "2023.05.23"]
[WhiteClock "0:00:01"]
[BlackClock "0:00:00"]

1. c4 {[%clk 0:03:00]}  e5 {[%clk 0:02:52]} 2. Nf3 {[%clk 0:02:59]}  Nc6 {[%clk 0:02:48]} 3. Nc3 {[%clk 0:02:55]}  Nf6 {[%clk 0:02:48]} 4. e3 {[%clk 0:02:55]}  a6 {[%clk 0:02:39]} 5. Bd3 {[%clk 0:02:51]}  g6 {[%clk 0:02:34]} 6. Bc2 {[%clk 0:02:45]}  Bg7 {[%clk 0:02:32]} 7. d4 {[%clk 0:02:46]}  exd4 {[%clk 0:02:25]} 8. exd4 {[%clk 0:02:46]}  O-O {[%clk 0:02:25]} 9. O-O {[%clk 0:02:45]}  d5 {[%clk 0:02:24]} 10. cxd5 {[%clk 0:02:44]}  Nxd5 {[%clk 0:02:23]} 11. Bb3 {[%clk 0:02:43]}  Nb6 {[%clk 0:02:17]} 12. Bg5 {[%clk 0:02:42]}  Bf6 {[%clk 0:02:06]} 13. Bxf6 {[%clk 0:02:41]}  Qxf6 {[%clk 0:02:07]} 14. Ne4 {[%clk 0:02:41]}  Qf4 {[%clk 0:02:04]} 15. Qe2 {[%clk 0:01:55]}  Bg4 {[%clk 0:02:02]} 16. Qe3 {[%clk 0:01:55]}  Qxe3 {[%clk 0:01:47]} 17. fxe3 {[%clk 0:01:56]}  Kg7 {[%clk 0:01:48]} 18. Nc5 {[%clk 0:01:54]}  Rab8 {[%clk 0:01:38]} 19. Ng5 {[%clk 0:01:51]}  Nd8 {[%clk 0:01:30]} 20. Rf4 {[%clk 0:01:43]}  Bc8 {[%clk 0:01:29]} 21. Raf1 {[%clk 0:01:03]}  f6 {[%clk 0:01:26]} 22. Nge4 {[%clk 0:01:03]}  f5 {[%clk 0:01:25]} 23. Nc3 {[%clk 0:01:01]}  Nd7 {[%clk 0:01:21]} 24. Nd3 {[%clk 0:00:50]}  Nf6 {[%clk 0:01:17]} 25. e4 {[%clk 0:00:47]}  Ne6 {[%clk 0:00:52]} 26. Bxe6 {[%clk 0:00:45]}  Bxe6 {[%clk 0:00:52]} 27. d5 {[%clk 0:00:41]}  Bg8 {[%clk 0:00:40]} 28. exf5 {[%clk 0:00:41]}  Rbd8 {[%clk 0:00:35]} 29. fxg6 {[%clk 0:00:29]}  hxg6 {[%clk 0:00:31]} 30. Nc5 {[%clk 0:00:29]}  Nxd5 {[%clk 0:00:23]} 31. Nxb7 {[%clk 0:00:09]}  Nxc3 {[%clk 0:00:15]} 32. bxc3 {[%clk 0:00:04]}  Rxf4 {[%clk 0:00:15]} 33. Rxf4 {[%clk 0:00:05]}  Rd3 {[%clk 0:00:09]} 34. c4 {[%clk 0:00:02]}  Rc3 {[%clk 0:00:07]} 35. Na5 {[%clk 0:00:02]}  Ra3 {[%clk 0:00:06]} 36. Nc6 {[%clk 0:00:01]}  Rxa2 {[%clk 0:00:06]} 37. h4 {[%clk 0:00:02]}  Ra4 {[%clk 0:00:05]} 38. Ne5 {[%clk 0:00:02]}  Ra5 {[%clk 0:00:06]} 39. Nd3 {[%clk 0:00:02]}  Rf5 {[%clk 0:00:05]} 40. Rd4 {[%clk 0:00:02]}  a5 {[%clk 0:00:05]} 41. c5 {[%clk 0:00:01]}  Bb3 {[%clk 0:00:04]} 42. Rd7+ {[%clk 0:00:01]}  Rf7 {[%clk 0:00:04]} 43. Rd8 {[%clk 0:00:02]}  a4 {[%clk 0:00:02]} 44. Ne5 {[%clk 0:00:02]}  Rf5 {[%clk 0:00:00]} 45. Nd3 {[%clk 0:00:01]} 1-0


[Site "https://www.chess.com"]

[Event "Titled Tuesday Blitz May 23 Early 2023"]
[White "Suyarov, Mukhammadzokhid"]
[Black "Gorovets, Andrey"]
[WhiteFideId "14210495"]
[BlackFideId "13504037"]
[WhiteElo "2361"]
[BlackElo "2459"]
[Result "0-1"]
[Round "11"]
[TimeControl "180+2"]
[Date "2023.05.23"]
[WhiteClock "0:00:33"]
[BlackClock "0:00:11"]

1. d4 {[%clk 0:03:00]}  e6 {[%clk 0:03:00]} 2. Nc3 {[%clk 0:03:00]}  Bb4 {[%clk 0:02:59]} 3. Bf4 {[%clk 0:03:01]}  Nf6 {[%clk 0:02:56]} 4. e3 {[%clk 0:03:01]}  Ne4 {[%clk 0:02:53]} 5. Ne2 {[%clk 0:03:00]}  g5 {[%clk 0:02:42]} 6. Be5 {[%clk 0:02:58]}  f6 {[%clk 0:02:41]} 7. Bg3 {[%clk 0:02:57]}  h5 {[%clk 0:02:41]} 8. h4 {[%clk 0:02:51]}  g4 {[%clk 0:02:33]} 9. a3 {[%clk 0:02:47]}  Bxc3+ {[%clk 0:02:34]} 10. Nxc3 {[%clk 0:02:47]}  Nxg3 {[%clk 0:02:33]} 11. fxg3 {[%clk 0:02:48]}  d5 {[%clk 0:02:27]} 12. e4 {[%clk 0:02:46]}  Qd6 {[%clk 0:02:25]} 13. Qd3 {[%clk 0:02:45]}  f5 {[%clk 0:02:22]} 14. exf5 {[%clk 0:02:39]}  exf5 {[%clk 0:02:17]} 15. Qe3+ {[%clk 0:02:39]}  Kf7 {[%clk 0:02:11]} 16. O-O-O {[%clk 0:02:39]}  c6 {[%clk 0:02:07]} 17. Bd3 {[%clk 0:02:38]}  Qh6 {[%clk 0:02:06]} 18. Qxh6 {[%clk 0:02:38]}  Rxh6 {[%clk 0:02:07]} 19. Rhf1 {[%clk 0:02:39]}  Rf6 {[%clk 0:02:08]} 20. Ne2 {[%clk 0:02:39]}  Nd7 {[%clk 0:01:34]} 21. Nf4 {[%clk 0:02:38]}  Rh6 {[%clk 0:01:30]} 22. Bxf5 {[%clk 0:02:36]}  Nf6 {[%clk 0:01:30]} 23. Bxc8 {[%clk 0:02:35]}  Rxc8 {[%clk 0:01:31]} 24. Rde1 {[%clk 0:02:36]}  Re8 {[%clk 0:01:31]} 25. Re5 {[%clk 0:02:36]}  Rxe5 {[%clk 0:01:20]} 26. dxe5 {[%clk 0:02:37]}  Ne4 {[%clk 0:01:21]} 27. Nxd5+ {[%clk 0:02:27]}  Ke6 {[%clk 0:01:18]} 28. Nf4+ {[%clk 0:02:22]}  Kxe5 {[%clk 0:01:19]} 29. Ne2 {[%clk 0:02:22]}  Rf6 {[%clk 0:01:06]} 30. Rxf6 {[%clk 0:02:20]}  Kxf6 {[%clk 0:01:07]} 31. c3 {[%clk 0:02:20]}  c5 {[%clk 0:01:07]} 32. c4 {[%clk 0:02:19]}  Ke5 {[%clk 0:00:54]} 33. b3 {[%clk 0:02:10]}  Nf6 {[%clk 0:00:49]} 34. Kd2 {[%clk 0:02:06]}  Ke4 {[%clk 0:00:49]} 35. Nf4 {[%clk 0:02:02]}  a6 {[%clk 0:00:48]} 36. Ne2 {[%clk 0:01:49]}  a5 {[%clk 0:00:38]} 37. Nc3+ {[%clk 0:01:46]}  Kd4 {[%clk 0:00:37]} 38. Nb5+ {[%clk 0:01:47]}  Ke5 {[%clk 0:00:36]} 39. Nc3 {[%clk 0:00:58]}  Ne4+ {[%clk 0:00:34]} 40. Kd3 {[%clk 0:00:51]}  Nxc3 {[%clk 0:00:25]} 41. Kxc3 {[%clk 0:00:52]}  Ke4 {[%clk 0:00:24]} 42. b4 {[%clk 0:00:44]}  b6 {[%clk 0:00:17]} 43. Kb3 {[%clk 0:00:35]}  Kd4 {[%clk 0:00:13]} 44. b5 {[%clk 0:00:36]}  Kd3 {[%clk 0:00:10]} 45. Ka4 {[%clk 0:00:36]}  Ke2 {[%clk 0:00:10]} 46. Kb3 {[%clk 0:00:35]}  Kf2 {[%clk 0:00:10]} 47. Kc3 {[%clk 0:00:35]}  Kxg3 {[%clk 0:00:10]} 48. Kb3 {[%clk 0:00:33]}  Kxg2 {[%clk 0:00:11]} 0-1


[Site "https://www.chess.com"]

[Event "Titled Tuesday Blitz May 23 Early 2023"]
[White "Fernandez Guillen, Ernesto J."]
[Black "Weishaeutel, Moritz"]
[WhiteFideId "3512428"]
[BlackFideId "12967300"]
[WhiteElo "2429"]
[BlackElo "2301"]
[Result "1-0"]
[Round "11"]
[TimeControl "180+2"]
[Date "2023.05.23"]
[WhiteClock "0:01:23"]
[BlackClock "0:00:15"]

1. e4 {[%clk 0:03:00]}  e5 {[%clk 0:03:00]} 2. Nf3 {[%clk 0:03:00]}  Nf6 {[%clk 0:03:01]} 3. Bc4 {[%clk 0:02:59]}  Nxe4 {[%clk 0:03:00]} 4. d4 {[%clk 0:02:54]}  d5 {[%clk 0:02:59]} 5. Qe2 {[%clk 0:02:53]}  exd4 {[%clk 0:02:54]} 6. O-O {[%clk 0:02:50]}  Bc5 {[%clk 0:02:25]} 7. Nbd2 {[%clk 0:02:32]}  O-O {[%clk 0:02:04]} 8. Nxe4 {[%clk 0:02:31]}  dxe4 {[%clk 0:02:03]} 9. Qxe4 {[%clk 0:02:32]}  Nc6 {[%clk 0:01:54]} 10. Ng5 {[%clk 0:02:28]}  g6 {[%clk 0:01:51]} 11. Qf4 {[%clk 0:01:46]}  Qd7 {[%clk 0:01:35]} 12. Nxh7 {[%clk 0:01:37]}  Kxh7 {[%clk 0:00:15]} 13. Qh6+ {[%clk 0:01:35]}  Kg8 {[%clk 0:00:15]} 14. Qxg6+ {[%clk 0:01:36]}  Kh8 {[%clk 0:00:16]} 15. Qf6+ {[%clk 0:01:35]}  Kh7 {[%clk 0:00:16]} 16. Bd3+ {[%clk 0:01:21]}  Kg8 {[%clk 0:00:17]} 17. Qg5+ {[%clk 0:01:21]}  Kh8 {[%clk 0:00:15]} 18. Qh6+ {[%clk 0:01:22]}  Kg8 {[%clk 0:00:15]} 19. Qh7# {[%clk 0:01:23]} 1-0


[Site "https://www.chess.com"]

[Event "Titled Tuesday Blitz May 23 Early 2023"]
[White "Al-Tarboush, Ward"]
[Black "Djordjevic, Vuk"]
[WhiteFideId "7601450"]
[BlackFideId "902098"]
[WhiteElo "2265"]
[BlackElo "2452"]
[Result "0-1"]
[Round "11"]
[TimeControl "180+2"]
[Date "2023.05.23"]
[WhiteClock "0:00:00"]
[BlackClock "0:00:10"]

1. e4 {[%clk 0:02:59]}  e6 {[%clk 0:03:00]} 2. d4 {[%clk 0:02:59]}  d5 {[%clk 0:03:01]} 3. exd5 {[%clk 0:02:59]}  exd5 {[%clk 0:03:01]} 4. Bd3 {[%clk 0:03:00]}  Bd6 {[%clk 0:03:01]} 5. Nc3 {[%clk 0:02:59]}  c6 {[%clk 0:03:01]} 6. Nge2 {[%clk 0:02:58]}  Nf6 {[%clk 0:03:00]} 7. Bg5 {[%clk 0:02:58]}  O-O {[%clk 0:03:00]} 8. Qd2 {[%clk 0:02:58]}  b5 {[%clk 0:02:59]} 9. O-O-O {[%clk 0:02:57]}  a5 {[%clk 0:02:59]} 10. Rdg1 {[%clk 0:02:56]}  a4 {[%clk 0:02:58]} 11. g4 {[%clk 0:02:55]}  b4 {[%clk 0:02:58]} 12. Nd1 {[%clk 0:02:55]}  Nbd7 {[%clk 0:02:35]} 13. Ne3 {[%clk 0:02:44]}  Ba6 {[%clk 0:02:08]} 14. Nf5 {[%clk 0:02:42]}  Qc7 {[%clk 0:02:04]} 15. Bh6 {[%clk 0:01:53]}  Bxd3 {[%clk 0:02:04]} 16. Bxg7 {[%clk 0:01:31]}  Bxe2 {[%clk 0:01:55]} 17. Qxe2 {[%clk 0:01:05]}  Ne4 {[%clk 0:01:21]} 18. Bxf8 {[%clk 0:00:57]}  Bf4+ {[%clk 0:01:12]} 19. Kb1 {[%clk 0:00:57]}  Nxf8 {[%clk 0:01:11]} 20. f3 {[%clk 0:00:45]}  Nd2+ {[%clk 0:00:56]} 21. Ka1 {[%clk 0:00:46]}  Ne6 {[%clk 0:00:51]} 22. Qd3 {[%clk 0:00:38]}  b3 {[%clk 0:00:46]} 23. Re1 {[%clk 0:00:35]}  bxc2 {[%clk 0:00:40]} 24. Qxc2 {[%clk 0:00:33]}  Nb3+ {[%clk 0:00:27]} 25. Kb1 {[%clk 0:00:32]}  Nbxd4 {[%clk 0:00:25]} 26. Nxd4 {[%clk 0:00:33]}  Nxd4 {[%clk 0:00:25]} 27. Qd3 {[%clk 0:00:34]}  Qb6 {[%clk 0:00:21]} 28. Rd1 {[%clk 0:00:25]}  c5 {[%clk 0:00:21]} 29. Rhe1 {[%clk 0:00:21]}  Rb8 {[%clk 0:00:18]} 30. Qc3 {[%clk 0:00:22]}  Bh6 {[%clk 0:00:16]} 31. Rf1 {[%clk 0:00:04]}  Bg7 {[%clk 0:00:16]} 32. Rf2 {[%clk 0:00:00]}  Ne2 {[%clk 0:00:10]} 0-1


[Site "https://www.chess.com"]

[Event "Titled Tuesday Blitz May 23 Early 2023"]
[White "djokovic74"]
[Black "Karthik Rajaa"]
[BlackFideId "25035215"]
[WhiteElo "2625"]
[BlackElo "2215"]
[Result "1-0"]
[Round "11"]
[TimeControl "180+2"]
[Date "2023.05.23"]
[WhiteClock "0:00:26"]
[BlackClock "0:00:42"]

1. e4 {[%clk 0:03:00]}  Nf6 {[%clk 0:02:59]} 2. e5 {[%clk 0:03:00]}  Nd5 {[%clk 0:03:00]} 3. d4 {[%clk 0:03:00]}  d6 {[%clk 0:03:00]} 4. c4 {[%clk 0:03:01]}  Nb6 {[%clk 0:03:00]} 5. exd6 {[%clk 0:03:01]}  exd6 {[%clk 0:03:01]} 6. Nf3 {[%clk 0:02:57]}  Be7 {[%clk 0:03:01]} 7. Nc3 {[%clk 0:02:56]}  O-O {[%clk 0:03:01]} 8. Be2 {[%clk 0:02:56]}  Bg4 {[%clk 0:02:59]} 9. b3 {[%clk 0:02:56]}  Nc6 {[%clk 0:02:58]} 10. O-O {[%clk 0:02:54]}  Bf6 {[%clk 0:02:58]} 11. Be3 {[%clk 0:02:54]}  Re8 {[%clk 0:02:53]} 12. Qd2 {[%clk 0:02:51]}  Ne7 {[%clk 0:02:53]} 13. h3 {[%clk 0:02:48]}  Bh5 {[%clk 0:02:52]} 14. g4 {[%clk 0:02:43]}  Bg6 {[%clk 0:02:52]} 15. g5 {[%clk 0:02:44]}  Nf5 {[%clk 0:02:41]} 16. gxf6 {[%clk 0:02:43]}  Nxe3 {[%clk 0:02:28]} 17. fxe3 {[%clk 0:02:42]}  Qxf6 {[%clk 0:02:28]} 18. Bd3 {[%clk 0:02:16]}  Bh5 {[%clk 0:02:22]} 19. Qf2 {[%clk 0:02:08]}  Qh6 {[%clk 0:02:19]} 20. Rae1 {[%clk 0:02:06]}  c6 {[%clk 0:02:19]} 21. Ne4 {[%clk 0:01:59]}  Bg6 {[%clk 0:02:14]} 22. Nh2 {[%clk 0:01:23]}  Qxh3 {[%clk 0:01:52]} 23. Nxd6 {[%clk 0:00:56]}  Re6 {[%clk 0:01:17]} 24. Bf5 {[%clk 0:00:37]}  Bxf5 {[%clk 0:01:09]} 25. Nxf5 {[%clk 0:00:37]}  Rg6+ {[%clk 0:00:55]} 26. Kh1 {[%clk 0:00:37]}  Re8 {[%clk 0:00:56]} 27. Nh6+ {[%clk 0:00:29]}  Kh8 {[%clk 0:00:45]} 28. Nxf7+ {[%clk 0:00:29]}  Kg8 {[%clk 0:00:42]} 29. Nh6+ {[%clk 0:00:26]} 1-0


[Site "https://www.chess.com"]

[Event "Titled Tuesday Blitz May 23 Early 2023"]
[White "Timofeev, Artyom"]
[Black "Begmuratov, Alisher"]
[WhiteFideId "4140419"]
[BlackFideId "14203367"]
[WhiteElo "2586"]
[BlackElo "2387"]
[Result "1-0"]
[Round "11"]
[TimeControl "180+2"]
[Date "2023.05.23"]
[WhiteClock "0:01:13"]
[BlackClock "0:01:11"]

1. c4 {[%clk 0:03:00]}  c5 {[%clk 0:02:58]} 2. Nc3 {[%clk 0:02:59]}  Nc6 {[%clk 0:02:58]} 3. Nf3 {[%clk 0:02:59]}  g6 {[%clk 0:02:58]} 4. g3 {[%clk 0:02:54]}  Bg7 {[%clk 0:02:58]} 5. Bg2 {[%clk 0:02:54]}  b6 {[%clk 0:02:58]} 6. O-O {[%clk 0:02:51]}  Bb7 {[%clk 0:02:59]} 7. e3 {[%clk 0:02:52]}  Nf6 {[%clk 0:02:59]} 8. d4 {[%clk 0:02:50]}  cxd4 {[%clk 0:02:59]} 9. exd4 {[%clk 0:02:49]}  d5 {[%clk 0:02:59]} 10. Ne5 {[%clk 0:02:47]}  e6 {[%clk 0:02:39]} 11. Qa4 {[%clk 0:02:44]}  Rc8 {[%clk 0:02:29]} 12. cxd5 {[%clk 0:02:43]}  exd5 {[%clk 0:02:28]} 13. Bg5 {[%clk 0:02:32]}  O-O {[%clk 0:02:25]} 14. Nxd5 {[%clk 0:02:28]}  Qxd5 {[%clk 0:01:57]} 15. Bxd5 {[%clk 0:02:25]}  Nxd5 {[%clk 0:01:57]} 16. Nxc6 {[%clk 0:01:50]}  Bxc6 {[%clk 0:01:58]} 17. Qb3 {[%clk 0:01:50]}  Bxd4 {[%clk 0:01:55]} 18. Rad1 {[%clk 0:01:46]}  Bf6 {[%clk 0:01:42]} 19. Rxd5 {[%clk 0:01:44]}  Bxd5 {[%clk 0:01:42]} 20. Qxd5 {[%clk 0:01:44]}  Bxb2 {[%clk 0:01:43]} 21. Rd1 {[%clk 0:01:33]}  Bg7 {[%clk 0:01:33]} 22. Be3 {[%clk 0:01:25]}  Bf6 {[%clk 0:01:30]} 23. Qb7 {[%clk 0:01:25]}  Rc2 {[%clk 0:01:26]} 24. Qxa7 {[%clk 0:01:23]}  Bg7 {[%clk 0:01:24]} 25. Bxb6 {[%clk 0:01:22]}  h5 {[%clk 0:01:24]} 26. h4 {[%clk 0:01:21]}  Re8 {[%clk 0:01:21]} 27. Be3 {[%clk 0:01:19]}  Rec8 {[%clk 0:01:19]} 28. a4 {[%clk 0:01:18]}  Ra2 {[%clk 0:01:18]} 29. a5 {[%clk 0:01:18]}  Rcc2 {[%clk 0:01:17]} 30. a6 {[%clk 0:01:18]}  Bf6 {[%clk 0:01:16]} 31. Qb8+ {[%clk 0:01:13]}  Kg7 {[%clk 0:01:16]} 32. a7 {[%clk 0:01:13]}  Rcb2 {[%clk 0:01:11]} 33. a8=Q {[%clk 0:01:13]} 1-0


[Site "https://www.chess.com"]

[Event "Titled Tuesday Blitz May 23 Early 2023"]
[White "Salinas Herrera, Pablo"]
[Black "Tasev, Dejan"]
[WhiteFideId "3407128"]
[BlackFideId "936618"]
[WhiteElo "2546"]
[BlackElo "2244"]
[Result "1-0"]
[Round "11"]
[TimeControl "180+2"]
[Date "2023.05.23"]
[WhiteClock "0:02:41"]
[BlackClock "0:01:15"]

1. d4 {[%clk 0:03:00]}  Nf6 {[%clk 0:02:49]} 2. Nf3 {[%clk 0:03:00]}  e6 {[%clk 0:02:49]} 3. c4 {[%clk 0:03:00]}  d5 {[%clk 0:02:48]} 4. Nc3 {[%clk 0:03:00]}  Be7 {[%clk 0:02:48]} 5. Bf4 {[%clk 0:03:00]}  c6 {[%clk 0:02:48]} 6. e3 {[%clk 0:03:00]}  O-O {[%clk 0:02:47]} 7. c5 {[%clk 0:02:59]}  Nbd7 {[%clk 0:02:42]} 8. Bd3 {[%clk 0:02:58]}  b6 {[%clk 0:02:42]} 9. b4 {[%clk 0:02:58]}  a5 {[%clk 0:02:42]} 10. a3 {[%clk 0:02:59]}  axb4 {[%clk 0:02:36]} 11. axb4 {[%clk 0:02:58]}  Rxa1 {[%clk 0:02:36]} 12. Qxa1 {[%clk 0:02:59]}  Bb7 {[%clk 0:02:33]} 13. O-O {[%clk 0:02:56]}  Qa8 {[%clk 0:02:32]} 14. Qb2 {[%clk 0:02:57]}  bxc5 {[%clk 0:02:20]} 15. bxc5 {[%clk 0:02:56]}  Qc8 {[%clk 0:02:13]} 16. Ra1 {[%clk 0:02:56]}  Nxc5 {[%clk 0:02:01]} 17. dxc5 {[%clk 0:02:53]}  Bxc5 {[%clk 0:02:02]} 18. Na4 {[%clk 0:02:43]}  Be7 {[%clk 0:01:50]} 19. Nb6 {[%clk 0:02:42]}  Qd8 {[%clk 0:01:46]} 20. Ra7 {[%clk 0:02:42]}  Bc8 {[%clk 0:01:39]} 21. Nxc8 {[%clk 0:02:42]}  Qxc8 {[%clk 0:01:38]} 22. Rxe7 {[%clk 0:02:42]}  c5 {[%clk 0:01:26]} 23. Rc7 {[%clk 0:02:42]}  Qa8 {[%clk 0:01:24]} 24. Rxc5 {[%clk 0:02:42]}  h6 {[%clk 0:01:19]} 25. h3 {[%clk 0:02:41]}  Ne4 {[%clk 0:01:18]} 26. Bxe4 {[%clk 0:02:41]}  dxe4 {[%clk 0:01:15]} 27. Nd4 {[%clk 0:02:41]} 1-0


[Site "https://www.chess.com"]

[Event "Titled Tuesday Blitz May 23 Early 2023"]
[White "bubeliang"]
[Black "Prohaszka, Peter"]
[BlackFideId "726265"]
[WhiteElo "2624"]
[BlackElo "2626"]
[Result "1-0"]
[Round "11"]
[TimeControl "180+2"]
[Date "2023.05.23"]
[WhiteClock "0:00:02"]
[BlackClock "0:00:00"]

1. e4 {[%clk 0:03:00]}  c6 {[%clk 0:02:59]} 2. c4 {[%clk 0:02:58]}  d5 {[%clk 0:03:00]} 3. cxd5 {[%clk 0:02:58]}  cxd5 {[%clk 0:03:01]} 4. exd5 {[%clk 0:02:59]}  Nf6 {[%clk 0:03:01]} 5. Nc3 {[%clk 0:02:56]}  Nxd5 {[%clk 0:03:00]} 6. Nf3 {[%clk 0:02:55]}  Nc6 {[%clk 0:03:00]} 7. d4 {[%clk 0:02:54]}  Be6 {[%clk 0:03:00]} 8. Bb5 {[%clk 0:02:47]}  Qb6 {[%clk 0:02:47]} 9. O-O {[%clk 0:02:41]}  g6 {[%clk 0:02:26]} 10. a4 {[%clk 0:02:36]}  Bg7 {[%clk 0:02:20]} 11. a5 {[%clk 0:02:25]}  Nxc3 {[%clk 0:02:20]} 12. axb6 {[%clk 0:02:25]}  Nxd1 {[%clk 0:02:20]} 13. Bxc6+ {[%clk 0:02:01]}  bxc6 {[%clk 0:02:20]} 14. b7 {[%clk 0:01:48]}  Rb8 {[%clk 0:01:56]} 15. Rxa7 {[%clk 0:01:47]}  Bb3 {[%clk 0:01:52]} 16. Bf4 {[%clk 0:01:37]}  Kd7 {[%clk 0:01:52]} 17. Nd2 {[%clk 0:01:37]}  Bxd4 {[%clk 0:01:30]} 18. Nxb3 {[%clk 0:00:25]}  Bxa7 {[%clk 0:01:23]} 19. Rxd1+ {[%clk 0:00:25]}  Ke6 {[%clk 0:01:21]} 20. Na5 {[%clk 0:00:25]}  Bb6 {[%clk 0:01:10]} 21. Bxb8 {[%clk 0:00:22]}  Rxb8 {[%clk 0:01:07]} 22. Nxc6 {[%clk 0:00:22]}  Rxb7 {[%clk 0:01:07]} 23. Re1+ {[%clk 0:00:21]}  Kd6 {[%clk 0:01:07]} 24. Ne5 {[%clk 0:00:21]}  Bd4 {[%clk 0:00:52]} 25. Nxf7+ {[%clk 0:00:21]}  Kd5 {[%clk 0:00:52]} 26. Re2 {[%clk 0:00:20]}  Bf6 {[%clk 0:00:39]} 27. Nh6 {[%clk 0:00:18]}  Bxb2 {[%clk 0:00:35]} 28. g3 {[%clk 0:00:16]}  Bd4 {[%clk 0:00:32]} 29. Ng4 {[%clk 0:00:16]}  Ba7 {[%clk 0:00:19]} 30. Kg2 {[%clk 0:00:16]}  h5 {[%clk 0:00:19]} 31. Ne5 {[%clk 0:00:15]}  Rb6 {[%clk 0:00:16]} 32. Nf3 {[%clk 0:00:11]}  Kd6 {[%clk 0:00:09]} 33. h4 {[%clk 0:00:08]}  Kd7 {[%clk 0:00:08]} 34. Ne5+ {[%clk 0:00:08]}  Kc7 {[%clk 0:00:07]} 35. Nf3 {[%clk 0:00:05]}  Kd8 {[%clk 0:00:07]} 36. Ne5 {[%clk 0:00:05]}  Rf6 {[%clk 0:00:06]} 37. Ra2 {[%clk 0:00:04]}  Bd4 {[%clk 0:00:06]} 38. Nf3 {[%clk 0:00:02]}  Bb6 {[%clk 0:00:05]} 39. Ng5 {[%clk 0:00:02]}  Kd7 {[%clk 0:00:05]} 40. f4 {[%clk 0:00:02]}  Rc6 {[%clk 0:00:04]} 41. Re2 {[%clk 0:00:03]}  e6 {[%clk 0:00:03]} 42. Nf3 {[%clk 0:00:03]}  Bc7 {[%clk 0:00:03]} 43. Nd4 {[%clk 0:00:02]}  Rb6 {[%clk 0:00:03]} 44. Nf3 {[%clk 0:00:02]}  Ke7 {[%clk 0:00:03]} 45. Ne5 {[%clk 0:00:02]}  Bxe5 {[%clk 0:00:02]} 46. Rxe5 {[%clk 0:00:03]}  Kf6 {[%clk 0:00:02]} 47. Kh3 {[%clk 0:00:03]}  Rb1 {[%clk 0:00:03]} 48. Ra5 {[%clk 0:00:03]}  Rb3 {[%clk 0:00:03]} 49. Ra8 {[%clk 0:00:02]}  Rb7 {[%clk 0:00:03]} 50. Ra2 {[%clk 0:00:02]}  Kf5 {[%clk 0:00:03]} 51. Kg2 {[%clk 0:00:03]}  Rb5 {[%clk 0:00:03]} 52. Kh3 {[%clk 0:00:02]}  Ke4 {[%clk 0:00:03]} 53. Re2+ {[%clk 0:00:03]}  Kf5 {[%clk 0:00:03]} 54. Re1 {[%clk 0:00:03]}  Kf6 {[%clk 0:00:03]} 55. Re2 {[%clk 0:00:03]}  Rb3 {[%clk 0:00:04]} 56. Re1 {[%clk 0:00:03]}  Rb6 {[%clk 0:00:04]} 57. Re3 {[%clk 0:00:04]}  Ke7 {[%clk 0:00:05]} 58. Re2 {[%clk 0:00:04]}  Kd6 {[%clk 0:00:06]} 59. Rd2+ {[%clk 0:00:05]}  Ke7 {[%clk 0:00:06]} 60. Re2 {[%clk 0:00:05]}  Ra6 {[%clk 0:00:06]} 61. Re1 {[%clk 0:00:05]}  Ra7 {[%clk 0:00:07]} 62. Re3 {[%clk 0:00:06]}  Kd6 {[%clk 0:00:07]} 63. Re2 {[%clk 0:00:06]}  Kd5 {[%clk 0:00:08]} 64. Re1 {[%clk 0:00:07]}  Ra6 {[%clk 0:00:07]} 65. Re5+ {[%clk 0:00:06]}  Kd4 {[%clk 0:00:07]} 66. Rg5 {[%clk 0:00:07]}  Ke4 {[%clk 0:00:06]} 67. Rxg6 {[%clk 0:00:08]}  Kf3 {[%clk 0:00:07]} 68. Kh2 {[%clk 0:00:03]}  Ra2+ {[%clk 0:00:07]} 69. Kh3 {[%clk 0:00:03]}  Ra1 {[%clk 0:00:07]} 70. Kh2 {[%clk 0:00:04]}  Ra2+ {[%clk 0:00:08]} 71. Kh3 {[%clk 0:00:04]}  Rg2 {[%clk 0:00:02]} 72. Rg5 {[%clk 0:00:04]}  Kf2 {[%clk 0:00:00]} 73. f5 {[%clk 0:00:02]} 1-0


[Site "https://www.chess.com"]